bitfinex/quotes_BTCUSD_20240617
["timestamp","ask_amount","ask_price","bid_price","bid_amount"]
[1718591193551,0.00075361,66348.0,66347.0,1.76063162]
[1718591194577,0.00011744,66362.0,66361.0,0.02]
[1718591194814,0.00011744,66362.0,66361.0,0.04467951]
[1718591195050,0.0039858,66362.0,66361.0,0.04467951]
[1718591195285,0.00011744,66362.0,66361.0,0.04467951]
[1718591195521,0.00011744,66362.0,66361.0,0.04559379]
[1718591195745,0.00011744,66362.0,66361.0,0.05070644]
[1718591195960,0.01211744,66362.0,66361.0,0.05070644]
[1718591196620,0.02211744,66362.0,66361.0,0.05070644]
[1718591198122,0.02211744,66362.0,66361.0,0.03070644]
[1718591199960,0.02211744,66362.0,66361.0,0.00031951]
[1718591200276,0.02598862,66362.0,66361.0,0.12621951]
[1718591200724,0.02211744,66362.0,66361.0,0.12621951]
[1718591200930,0.02598862,66362.0,66361.0,0.12621951]
[1718591201057,0.13098862,66362.0,66361.0,0.12621951]
[1718591201653,0.41517662,66362.0,66361.0,0.00031951]
[1718591201905,0.71655362,66362.0,66361.0,0.00031951]
[1718591205888,0.31017662,66362.0,66361.0,0.00031951]
[1718591206089,0.17667662,66362.0,66361.0,0.00031951]
[1718591206357,0.17667662,66362.0,66361.0,0.02528146]
[1718591206358,0.02598862,66362.0,66361.0,0.02528146]
[1718591206614,0.02536936,66362.0,66361.0,0.02528146]
[1718591206783,0.02211744,66362.0,66361.0,0.04528146]
[1718591207530,0.02598938,66362.0,66361.0,0.04528146]
[1718591208083,0.02211744,66362.0,66361.0,0.04528146]
[1718591209296,0.02598938,66362.0,66361.0,0.04528146]
[1718591211155,0.02598938,66362.0,66361.0,0.59835246]
[1718591211312,0.02598938,66362.0,66361.0,0.73005246]
[1718591211533,0.02211744,66362.0,66361.0,1.15648867]
[1718591211961,0.01211744,66362.0,66361.0,1.15648866]
[1718591212340,0.00711744,66362.0,66361.0,1.15648866]
[1718591212763,0.00111744,66362.0,66361.0,1.16248866]
[1718591212996,0.00011744,66362.0,66361.0,1.15648866]
[1718591213201,0.00111744,66362.0,66361.0,1.15748866]
[1718591213403,0.00211744,66362.0,66361.0,1.61695745]
[1718591213607,0.00100001,66362.0,66361.0,1.94133845]
[1718591213954,1e-08,66362.0,66361.0,2.57384056]
[1718591214342,1e-08,66362.0,66361.0,2.51557953]
[1718591214560,0.00093501,66363.0,66362.0,1.410319]
[1718591214763,0.00093501,66363.0,66362.0,2.00793583]
[1718591214954,0.00093501,66374.0,66373.0,0.170663]
[1718591215159,0.00093501,66374.0,66373.0,0.55538249]
[1718591215369,0.00483031,66374.0,66373.0,1.15803649]
[1718591215571,0.00093501,66374.0,66373.0,1.15803649]
[1718591215727,0.00093501,66374.0,66373.0,1.28384013]
[1718591215929,0.00093501,66374.0,66373.0,1.27384013]
[1718591216654,0.00193501,66374.0,66373.0,1.72725492]
[1718591217316,0.00193501,66374.0,66373.0,1.12460091]
[1718591217832,0.00193501,66374.0,66373.0,1.42592791]
[1718591218333,0.00293501,66374.0,66373.0,1.43692791]
[1718591218538,0.00193501,66374.0,66373.0,1.43692791]
[1718591218738,0.00093501,66374.0,66373.0,1.42592791]
[1718591218945,0.00093501,66374.0,66373.0,1.43692791]
[1718591219189,0.00093501,66374.0,66373.0,1.44792791]
[1718591219190,0.00193501,66374.0,66373.0,1.44792791]
[1718591219332,0.00193501,66374.0,66373.0,1.74925491]
[1718591219544,0.00193501,66374.0,66373.0,1.84925491]
[1718591219746,0.00093501,66374.0,66373.0,1.83825491]
[1718591219946,0.00093501,66374.0,66373.0,1.73825491]
[1718591220110,0.00093501,66374.0,66373.0,1.66194765]
[1718591220313,0.00093501,66374.0,66373.0,1.66194764]
[1718591220715,0.00093501,66374.0,66373.0,1.96327464]
[1718591221153,0.00093501,66374.0,66373.0,1.97427464]
[1718591221886,0.00093501,66374.0,66373.0,1.87427464]
[1718591222317,0.00093501,66374.0,66373.0,1.97427464]
[1718591222508,0.04918991,66387.0,66386.0,0.86337]
[1718591222723,0.04918991,66387.0,66386.0,0.98958946]
[1718591222953,0.07604389,66389.0,66388.0,0.461888]
[1718591223149,0.07604389,66389.0,66388.0,0.76346645]
[1718591223350,0.07604389,66389.0,66388.0,0.88456645]
[1718591223574,0.009416,66395.0,66393.0,0.01]
[1718591223785,0.009416,66395.0,66394.0,0.587748]
[1718591223991,0.009416,66395.0,66394.0,0.1259]
[1718591224165,0.01104067,66395.0,66393.0,0.00031945]
[1718591224367,0.01020908,66395.0,66394.0,0.1259]
[1718591224612,0.46288067,66395.0,66394.0,0.1259]
[1718591224750,0.46603487,66395.0,66394.0,0.1259]
[1718591225133,0.46603487,66395.0,66393.0,0.00031945]
[1718591225134,0.75391159,66394.0,66393.0,0.00031945]
[1718591225332,0.97781159,66394.0,66393.0,0.00031945]
[1718591225539,0.98096898,66394.0,66393.0,0.00031945]
[1718591225971,0.98096898,66394.0,66393.0,0.00131945]
[1718591226378,0.98096898,66394.0,66393.0,0.00031945]
[1718591226379,1.28220098,66394.0,66393.0,0.00031945]
[1718591226696,1.28420098,66394.0,66393.0,0.00131945]
[1718591227053,1.28220098,66394.0,66393.0,0.00031945]
[1718591227456,1.28420098,66394.0,66393.0,0.00131945]
[1718591227688,1.28495671,66394.0,66393.0,0.00131945]
[1718591227890,1.28895671,66394.0,66393.0,0.00231945]
[1718591228473,0.98772471,66394.0,66393.0,0.00231945]
[1718591228692,0.98372471,66394.0,66393.0,0.00131945]
[1718591229133,0.98772471,66394.0,66393.0,0.00231945]
[1718591229334,0.98572471,66394.0,66393.0,0.00131945]
[1718591229746,0.99272471,66394.0,66393.0,0.00231945]
[1718591230334,0.98572471,66394.0,66393.0,0.00131945]
[1718591230552,1.28695671,66394.0,66393.0,0.00131945]
[1718591230875,1.4390445,66394.0,66393.0,0.00131945]
[1718591231220,1.4460445,66394.0,66393.0,0.00231945]
[1718591231424,1.4560445,66394.0,66393.0,0.00231945]
[1718591232876,1.7572765,66394.0,66393.0,0.00231945]
[1718591233287,2.1659125,66394.0,66393.0,0.00231945]
[1718591233500,2.31141768,66394.0,66393.0,0.00231945]
[1718591233711,2.3563799,66394.0,66393.0,0.00231945]
[1718591233908,2.42886101,66394.0,66393.0,0.00231945]
[1718591234251,2.42886101,66394.0,66360.0,0.1259]
[1718591234252,0.00083159,66366.0,66360.0,0.1259]
[1718591234462,0.00083159,66363.0,66360.0,0.1259]
[1718591234677,0.00083159,66361.0,66360.0,0.1259]
[1718591234881,0.30221259,66361.0,66360.0,0.1259]
[1718591235086,0.30285114,66361.0,66360.0,0.1259]
[1718591235290,0.30201955,66361.0,66360.0,0.1259]
[1718591235488,0.00147014,66361.0,66360.0,0.1259]
[1718591236354,0.00063855,66361.0,66360.0,0.1339]
[1718591236559,0.00063855,66361.0,66360.0,0.16912]
[1718591236763,0.00183159,66363.0,66360.0,0.16912]
[1718591236976,0.15216014,66361.0,66360.0,0.18674327]
[1718591237196,0.45390259,66361.0,66360.0,0.18674327]
[1718591237408,0.45454114,66361.0,66360.0,0.15152327]
[1718591237620,0.45454114,66361.0,66360.0,0.14352327]
[1718591237837,0.45370955,66361.0,66360.0,0.14352327]
[1718591238036,0.45470955,66361.0,66360.0,0.14352327]
[1718591238417,0.00263855,66361.0,66360.0,0.14352327]
[1718591239226,0.75692214,66361.0,66360.0,0.14352327]
[1718591239426,0.452106,66356.0,66355.0,0.1259]
[1718591239661,0.00388667,66356.0,66355.0,0.1259]
[1718591240261,0.00471826,66356.0,66355.0,0.1259]
[1718591240667,0.00571826,66356.0,66355.0,0.14886953]
[1718591240897,0.23246415,66356.0,66355.0,0.005]
[1718591241108,0.75922826,66356.0,66355.0,0.005]
[1718591241424,0.45782426,66356.0,66355.0,0.005]
[1718591241625,0.00488667,66356.0,66355.0,0.005]
[1718591241845,0.00488667,66356.0,66355.0,0.014]
[1718591241846,0.00588667,66356.0,66355.0,0.014]
[1718591242757,0.00671826,66356.0,66355.0,0.014]
[1718591243636,0.00671826,66356.0,66355.0,0.01485]
[1718591243996,0.00588667,66356.0,66355.0,0.01485]
[1718591245197,0.00671826,66356.0,66355.0,0.01485]
[1718591246404,0.00588667,66356.0,66355.0,0.01485]
[1718591247319,0.00588667,66356.0,66355.0,0.0535495]
[1718591247523,0.00588667,66356.0,66355.0,0.3372535]
[1718591247662,0.00588667,66356.0,66355.0,0.7673625]
[1718591247663,0.002,66356.0,66355.0,0.7673625]
[1718591248080,0.002,66356.0,66355.0,1.0687715]
[1718591248918,0.002,66356.0,66355.0,0.3052495]
[1718591249367,0.002,66356.0,66355.0,0.3152495]
[1718591249588,0.002,66356.0,66355.0,0.4659535]
[1718591250001,0.002,66356.0,66355.0,1.0687715]
[1718591250562,0.002,66356.0,66355.0,1.52226829]
[1718591251153,0.002,66356.0,66355.0,1.22085929]
[1718591252718,0.002,66356.0,66355.0,1.21085929]
[1718591252926,0.002,66356.0,66355.0,1.22085929]
[1718591253110,0.002,66356.0,66355.0,0.45733729]
[1718591253364,0.002,66356.0,66355.0,0.01485]
[1718591253742,0.00665992,66356.0,66355.0,0.01485]
[1718591253999,0.0034474,66356.0,66355.0,0.01485]
[1718591254439,0.4555534,66356.0,66355.0,0.01485]
[1718591254651,0.7569574,66356.0,66355.0,0.01485]
[1718591254899,0.76017265,66356.0,66355.0,0.01485]
[1718591255102,0.88317265,66356.0,66355.0,0.01485]
[1718591255320,0.88217265,66356.0,66355.0,0.00585]
[1718591255747,0.88217265,66356.0,66355.0,0.01185]
[1718591255748,1.18457665,66356.0,66355.0,0.01185]
[1718591256136,1.18357665,66356.0,66355.0,0.00685]
[1718591256334,1.29337665,66356.0,66355.0,0.00685]
[1718591256589,1.29437665,66356.0,66355.0,0.01185]
[1718591257266,1.29337665,66356.0,66355.0,0.00685]
[1718591257734,1.29737665,66356.0,66355.0,0.00685]
[1718591257940,1.29737665,66356.0,66355.0,0.00085]
[1718591257941,1.28237665,66356.0,66355.0,0.00085]
[1718591258360,1.28637665,66356.0,66355.0,0.00085]
[1718591258775,1.29237665,66356.0,66355.0,0.00085]
[1718591259677,1.28737665,66356.0,66355.0,0.00085]
[1718591259890,1.29337665,66356.0,66355.0,0.00185]
[1718591260705,1.30337665,66356.0,66355.0,0.00185]
[1718591262332,1.29337665,66356.0,66355.0,0.00185]
[1718591262592,1.30337665,66356.0,66355.0,0.00185]
[1718591263970,1.29337665,66356.0,66355.0,0.00185]
[1718591264902,0.01483106,66356.0,66355.0,0.00185]
[1718591265099,0.01566265,66356.0,66355.0,0.024785]
[1718591265301,0.46776865,66356.0,66355.0,0.00185]
[1718591265472,0.76917265,66356.0,66355.0,0.00185]
[1718591266658,0.16636465,66356.0,66355.0,0.00185]
[1718591266866,0.46776865,66356.0,66355.0,0.00185]
[1718591269150,1.07057665,66356.0,66355.0,0.00185]
[1718591270431,0.77917265,66356.0,66355.0,0.00185]
[1718591270634,0.76917265,66356.0,66355.0,0.00185]
[1718591271829,0.77917265,66356.0,66355.0,0.00185]
[1718591272904,0.76917265,66356.0,66355.0,0.00185]
[1718591273836,0.77917265,66356.0,66355.0,0.00185]
[1718591275855,0.76917265,66356.0,66355.0,0.00185]
[1718591280598,0.76912395,66356.0,66355.0,0.00185]
[1718591282802,1.07052795,66356.0,66355.0,0.00185]
[1718591283212,1.53401974,66356.0,66355.0,0.00185]
[1718591283417,1.80530335,66356.0,66355.0,0.00185]
[1718591283633,1.50389935,66356.0,66355.0,0.00185]
[1718591283808,1.80530335,66356.0,66355.0,0.00185]
[1718591284177,1.50389935,66356.0,66355.0,0.00185]
[1718591284380,1.49389935,66356.0,66355.0,0.00185]
[1718591284591,1.49289935,66356.0,66355.0,0.00106341]
[1718591285212,1.50389935,66356.0,66355.0,0.00206341]
[1718591285834,1.5715092,66356.0,66355.0,0.00206341]
[1718591286049,1.51589935,66356.0,66355.0,0.00206341]
[1718591286928,1.5835092,66356.0,66355.0,0.00206341]
[1718591287241,1.51589935,66356.0,66355.0,0.00206341]
[1718591289609,1.50589935,66356.0,66355.0,0.00206341]
[1718591289818,1.15007504,66356.0,66355.0,0.00206341]
[1718591290002,0.97759535,66356.0,66355.0,0.00206341]
[1718591290203,1.27899935,66356.0,66355.0,0.00206341]
[1718591290610,0.97759535,66356.0,66355.0,0.00206341]
[1718591291004,1.27899935,66356.0,66355.0,0.00206341]
[1718591291206,0.97759535,66356.0,66355.0,0.00206341]
[1718591291623,0.82550756,66356.0,66355.0,0.00206341]
[1718591292751,0.78112395,66356.0,66355.0,0.00206341]
[1718591292970,1.12466186,66356.0,66355.0,0.00206341]
[1718591293172,1.35226186,66356.0,66355.0,0.00206341]
[1718591293815,1.86575365,66356.0,66355.0,0.00206341]
[1718591294011,1.59943754,66356.0,66355.0,0.00206341]
[1718591294206,1.55434965,66356.0,66355.0,0.00206341]
[1718591294434,1.56434965,66356.0,66355.0,0.00206341]
[1718591294611,1.55434965,66356.0,66355.0,0.00206341]
[1718591294792,1.62198149,66356.0,66355.0,0.00206341]
[1718591295241,1.55434965,66356.0,66355.0,0.00206341]
[1718591295439,1.62198149,66356.0,66355.0,0.00206341]
[1718591296481,1.55434965,66356.0,66355.0,0.00206341]
[1718591296632,1.62198149,66356.0,66355.0,0.00206341]
[1718591297019,1.55434965,66356.0,66355.0,0.00206341]
[1718591297417,1.64452544,66356.0,66355.0,0.00206341]
[1718591298047,1.95592944,66356.0,66355.0,0.00206341]
[1718591298258,1.65452544,66356.0,66355.0,0.00206341]
[1718591298455,1.56434965,66356.0,66355.0,0.00206341]
[1718591299473,1.66706939,66356.0,66355.0,0.00206341]
[1718591300425,1.55434965,66356.0,66355.0,0.00206341]
[1718591301053,1.56434965,66356.0,66355.0,0.00206341]
[1718591301253,1.86575365,66356.0,66355.0,0.00206341]
[1718591303328,1.56434965,66356.0,66355.0,0.00206341]
[1718591304889,1.86575365,66356.0,66355.0,0.00206341]
[1718591308574,1.86575365,66356.0,66355.0,4.1e-07]
[1718591308575,3.26724765,66356.0,66355.0,4.1e-07]
[1718591308779,3.26724765,66356.0,66355.0,0.00085041]
[1718591308780,2.8637007,66356.0,66355.0,0.00085041]
[1718591308982,2.54755765,66356.0,66355.0,0.00085041]
[1718591309189,2.54849266,66356.0,66355.0,0.00085041]
[1718591309392,5.87955166,66356.0,66355.0,0.00085041]
[1718591309591,5.83223466,66356.0,66355.0,0.00085041]
[1718591309891,5.8354202,66356.0,66355.0,0.00085]
[1718591310301,5.8494202,66356.0,66355.0,1e-06]
[1718591310693,5.8354202,66356.0,66355.0,1e-06]
[1718591311102,5.8214202,66356.0,66355.0,1e-06]
[1718591311300,5.8354202,66356.0,66355.0,1e-06]
[1718591311544,5.8494202,66356.0,66355.0,1e-06]
[1718591312338,5.84848485,66356.0,66355.0,1e-06]
[1718591313132,5.79808485,66356.0,66355.0,1e-06]
[1718591313335,5.71473985,66356.0,66355.0,1e-06]
[1718591313550,2.55274285,66356.0,66355.0,1e-06]
[1718591313788,3.10336685,66356.0,66355.0,1e-06]
[1718591313994,6.07418985,66356.0,66355.0,1e-06]
[1718591314207,2.80196285,66356.0,66355.0,1e-06]
[1718591314411,6.08368985,66356.0,66355.0,1e-06]
[1718591314610,2.80196285,66356.0,66355.0,1e-06]
[1718591314814,6.07591274,66356.0,66355.0,1e-06]
[1718591315018,6.02865274,66356.0,66355.0,1e-06]
[1718591315224,6.01413674,66356.0,66355.0,1e-06]
[1718591315864,6.0322445,66356.0,66355.0,1e-06]
[1718591318945,6.3336485,66356.0,66355.0,1e-06]
[1718591319273,6.0322445,66356.0,66355.0,1e-06]
[1718591319499,6.33271576,66356.0,66355.0,1e-06]
[1718591321590,6.33271576,66356.0,66348.0,1e-06]
[1718591321591,1.94872959,66349.0,66348.0,1e-06]
[1718591321790,0.36155159,66348.0,66347.0,7.4e-07]
[1718591321993,1.25645588,66348.0,66347.0,7.4e-07]
[1718591322170,2.71143588,66348.0,66347.0,7.4e-07]
[1718591322541,2.93613588,66348.0,66347.0,7.4e-07]
[1718591322742,2.93659145,66348.0,66347.0,7.4e-07]
[1718591323414,2.95059145,66348.0,66347.0,7.4e-07]
[1718591323779,2.95059145,66348.0,66337.0,0.00085]
[1718591323780,0.06083159,66338.0,66337.0,0.00085]
[1718591323973,1.35796859,66316.0,66315.0,0.21093708]
[1718591324192,1.35796859,66316.0,66299.0,0.12132137]
[1718591324193,0.754215,66294.0,66293.0,0.14001843]
[1718591324428,0.754215,66294.0,66267.0,0.2]
[1718591324429,0.00083159,66293.0,66270.0,0.00905499]
[1718591324646,0.72390159,66291.0,66255.0,0.00905499]
[1718591324861,1.42350159,66291.0,66250.0,0.0005033]
[1718591325094,2.73519552,66291.0,66250.0,0.0005033]
[1718591325304,0.99266859,66281.0,66250.0,0.0005033]
[1718591325522,1.106412,66262.0,66261.0,0.3209001]
[1718591325735,0.80458,66262.0,66261.0,0.3209001]
[1718591325949,0.90666779,66262.0,66261.0,0.3209001]
[1718591326155,0.90666779,66262.0,66250.0,0.0005033]
[1718591326156,0.31177259,66251.0,66250.0,0.0005033]
[1718591326372,0.08,66256.0,66238.0,0.15097]
[1718591326373,0.676,66255.0,66238.0,0.15097]
[1718591326585,0.015,66251.0,66234.0,0.07924231]
[1718591326797,0.150977,66235.0,66234.0,0.0832033]
[1718591327006,0.150977,66235.0,66234.0,0.0732033]
[1718591327213,0.05,66248.0,66235.0,0.01]
[1718591327421,0.150975,66236.0,66235.0,0.01]
[1718591327645,0.150944,66250.0,66239.0,0.01]
[1718591327850,0.20117532,66249.0,66237.0,0.01]
[1718591328090,0.04908753,66249.0,66243.0,0.01]
[1718591328299,0.04908753,66249.0,66244.0,0.1364]
[1718591328506,0.101,66262.0,66248.0,0.01]
[1718591328707,0.45626336,66260.0,66248.0,0.01]
[1718591328924,0.15208779,66261.0,66256.0,0.1264]
[1718591328925,0.04957135,66261.0,66256.0,0.1264]
[1718591329138,0.04957135,66261.0,66260.0,0.01]
[1718591329359,0.07604389,66274.0,66265.0,0.01]
[1718591329562,0.07604389,66274.0,66266.0,0.01]
[1718591329563,0.60835115,66273.0,66266.0,0.01]
[1718591329764,0.04988213,66275.0,66267.0,0.01]
[1718591329971,0.00323632,66273.0,66266.0,0.16694165]
[1718591330179,0.00323722,66274.0,66273.0,0.01]
[1718591330390,0.15208779,66281.0,66273.0,0.01]
[1718591330599,0.15208779,66281.0,66267.0,0.16759817]
[1718591330600,0.20112613,66281.0,66267.0,0.16759817]
[1718591330822,0.00323812,66280.0,66268.0,0.150902]
[1718591331057,0.07604389,66275.0,66263.0,0.01]
[1718591331282,0.07604389,66275.0,66260.0,0.1053]
[1718591331283,0.07604389,66275.0,66269.0,0.01]
[1718591331509,0.00347803,66274.0,66269.0,0.01]
[1718591331724,0.003,66273.0,66269.0,0.01]
[1718591331946,0.003,66273.0,66260.0,0.1053]
[1718591331947,0.003,66273.0,66267.0,0.01]
[1718591332391,0.003,66273.0,66260.0,0.1053]
[1718591332392,0.00374557,66272.0,66269.0,0.01]
[1718591332904,0.00374557,66272.0,66260.0,0.1053]
[1718591332905,0.003,66273.0,66272.0,0.150893]
[1718591333129,0.316682,66295.0,66272.0,0.150893]
[1718591333130,0.00083159,66290.0,66279.0,0.150875]
[1718591333360,0.07604389,66280.0,66273.0,0.01]
[1718591333594,0.07604389,66280.0,66276.0,0.01]
[1718591333837,0.07604389,66280.0,66279.0,0.150877]
[1718591334073,0.04941347,66287.0,66283.0,0.01]
[1718591334301,0.04941347,66287.0,66283.0,0.150866]
[1718591334534,0.07604389,66292.0,66283.0,0.150866]
[1718591334775,0.07604389,66292.0,66283.0,0.2084979]
[1718591335018,0.07604389,66292.0,66284.0,0.150865]
[1718591335472,0.07604389,66292.0,66283.0,0.0576319]
[1718591335701,0.07687548,66292.0,66281.0,0.264571]
[1718591335933,0.00083159,66291.0,66283.0,0.01]
[1718591336159,0.150855,66289.0,66283.0,0.01]
[1718591336404,0.150855,66289.0,66281.0,0.1137]
[1718591336859,0.150857,66288.0,66281.0,0.1137]
[1718591337159,0.00083159,66284.0,66281.0,0.1137]
[1718591337386,0.07604389,66285.0,66281.0,0.1137]
[1718591337627,0.15087,66282.0,66281.0,0.1137]
[1718591337851,0.00083159,66284.0,66281.0,0.1137]
[1718591338074,0.754352,66282.0,66281.0,0.1137]
[1718591338279,0.07604389,66285.0,66281.0,0.1137]
[1718591338493,0.22690889,66285.0,66281.0,0.1137]
[1718591338706,0.30256359,66284.0,66281.0,0.1137]
[1718591338912,0.15587,66282.0,66281.0,0.1137]
[1718591339118,0.00083159,66281.0,66265.0,0.1059]
[1718591339350,0.07604389,66274.0,66265.0,0.1059]
[1718591339556,0.07687548,66274.0,66265.0,0.1059]
[1718591339763,0.150892,66273.0,66265.0,0.12937]
[1718591339970,0.07687548,66274.0,66265.0,0.12937]
[1718591340181,0.07687548,66274.0,66265.0,0.1059]
[1718591340182,0.07604389,66267.0,66265.0,0.1059]
[1718591340322,0.452719,66266.0,66265.0,0.1059]
[1718591340731,0.00083159,66276.0,66265.0,0.1059]
[1718591340936,0.15587,66282.0,66271.0,0.1264]
[1718591341148,0.005,66282.0,66278.0,0.01]
[1718591341372,0.005,66282.0,66271.0,0.1264]
[1718591341373,0.301746,66281.0,66271.0,0.1264]
[1718591341571,0.150885,66276.0,66266.0,0.1264]
[1718591341977,0.001,66274.0,66271.0,0.01]
[1718591342216,0.001,66274.0,66273.0,0.462673]
[1718591342676,0.000946,66274.0,66273.0,0.585273]
[1718591342955,0.000946,66274.0,66273.0,0.1226]
[1718591343207,0.000946,66274.0,66273.0,0.1326]
[1718591343670,0.00474397,66274.0,66273.0,0.283491]
[1718591343906,0.000946,66274.0,66273.0,0.30775957]
[1718591344121,0.001946,66274.0,66273.0,0.29775957]
[1718591344361,0.001946,66274.0,66273.0,0.1326]
[1718591344587,0.001946,66274.0,66273.0,0.283491]
[1718591344849,0.002946,66274.0,66273.0,0.283491]
[1718591345068,0.001946,66274.0,66273.0,0.1326]
[1718591345501,0.002946,66274.0,66273.0,0.1326]
[1718591345723,0.001946,66274.0,66273.0,0.1326]
[1718591346141,0.001946,66274.0,66273.0,0.1226]
[1718591346809,0.00672838,66274.0,66273.0,0.1326]
[1718591347032,0.002946,66274.0,66273.0,0.3244805]
[1718591347676,0.002946,66274.0,66273.0,0.1735895]
[1718591348129,0.001946,66274.0,66273.0,0.1735895]
[1718591348336,0.001946,66274.0,66273.0,0.4753715]
[1718591348337,0.002946,66274.0,66273.0,0.4753715]
[1718591348776,0.001946,66274.0,66273.0,0.1326]
[1718591348947,0.001946,66274.0,66273.0,0.283491]
[1718591348948,0.002946,66274.0,66273.0,0.283491]
[1718591349157,0.002946,66274.0,66273.0,0.585273]
[1718591349356,0.002946,66274.0,66273.0,0.57571169]
[1718591349565,0.001946,66274.0,66273.0,0.57571169]
[1718591349760,0.000946,66274.0,66273.0,0.67610246]
[1718591349903,0.000946,66274.0,66273.0,1.66165425]
[1718591349904,0.001946,66274.0,66273.0,1.66165425]
[1718591350364,0.002946,66274.0,66273.0,1.66165425]
[1718591351424,0.002946,66274.0,66273.0,1.56165425]
[1718591351830,0.001946,66274.0,66273.0,1.66165425]
[1718591352035,0.04921019,66292.0,66291.0,0.01]
[1718591352234,0.07604389,66301.0,66290.0,0.01]
[1718591352235,0.30249059,66300.0,66290.0,0.01]
[1718591352409,0.15166959,66297.0,66290.0,0.01]
[1718591352589,0.00083159,66294.0,66288.0,0.1264]
[1718591352799,0.150872,66282.0,66280.0,0.01]
[1718591353001,0.22813168,66294.0,66282.0,0.01]
[1718591353002,0.301698,66292.0,66282.0,0.01]
[1718591353211,0.07604389,66287.0,66280.0,0.01]
[1718591353417,0.00366692,66291.0,66284.0,0.01]
[1718591353628,0.0036666,66286.0,66285.0,0.04177763]
[1718591353840,0.37980727,66294.0,66285.0,0.04177763]
[1718591353841,0.07604389,66294.0,66287.0,0.01]
[1718591354044,0.07604389,66294.0,66288.0,0.01]
[1718591354248,0.00366668,66293.0,66288.0,0.01]
[1718591354542,0.00366668,66293.0,66285.0,0.1264]
[1718591354543,0.00366668,66293.0,66292.0,0.265047]
[1718591354816,0.07604389,66294.0,66292.0,0.1142]
[1718591355179,0.07604389,66301.0,66296.0,0.01]
[1718591355376,0.07604389,66301.0,66297.0,0.02472]
[1718591355594,0.00368156,66300.0,66296.0,0.01]
[1718591355798,0.07604389,66301.0,66296.0,0.01]
[1718591355987,0.00368108,66299.0,66296.0,0.01]
[1718591356189,0.00368156,66300.0,66298.0,0.01]
[1718591356391,0.30166,66300.0,66294.0,0.123]
[1718591356610,0.150845,66293.0,66292.0,0.1152]
[1718591356825,0.150845,66293.0,66292.0,0.1142]
[1718591356826,0.52857889,66293.0,66292.0,0.1142]
[1718591357065,0.52857889,66293.0,66287.0,0.123]
[1718591357066,0.150856,66288.0,66287.0,0.123]
[1718591357279,0.150865,66284.0,66283.0,0.1142]
[1718591357485,0.150865,66284.0,66279.0,0.123]
[1718591357486,0.15087,66282.0,66279.0,0.123]
[1718591357628,0.301731,66284.0,66270.0,0.01]
[1718591357629,0.07604389,66280.0,66270.0,0.01]
[1718591357830,0.301756,66279.0,66274.0,0.01]
[1718591358044,0.150882,66277.0,66270.0,0.02860875]
[1718591358253,0.30541685,66279.0,66268.0,0.1142]
[1718591358254,0.150892,66273.0,66268.0,0.1142]
[1718591358510,0.07604389,66272.0,66268.0,0.1142]
[1718591358809,0.1509,66269.0,66268.0,0.1142]
[1718591359008,0.301792,66271.0,66267.0,0.123]
[1718591359009,0.150902,66268.0,66267.0,0.123]
[1718591359158,0.00364966,66269.0,66267.0,0.123]
[1718591359357,0.150897,66271.0,66267.0,0.123]
[1718591359358,0.150897,66271.0,66267.0,0.1618575]
[1718591359571,0.00364809,66270.0,66269.0,0.01]
[1718591359826,0.00364809,66270.0,66269.0,0.5891]
[1718591360105,0.00083159,66283.0,66275.0,0.01]
[1718591360106,0.07604389,66283.0,66275.0,0.01]
[1718591360306,0.07604389,66283.0,66272.0,0.01]
[1718591360520,0.00363714,66281.0,66274.0,0.01]
[1718591360740,0.00363714,66281.0,66275.0,0.01]
[1718591360950,0.07604389,66276.0,66273.0,0.01]
[1718591361165,0.07604389,66276.0,66269.0,0.006]
[1718591361166,0.452692,66270.0,66269.0,0.006]
[1718591361395,0.754487,66270.0,66269.0,0.006]
[1718591361602,0.00363476,66270.0,66269.0,0.006]
[1718591362026,0.07604389,66276.0,66269.0,0.0227762]
[1718591362247,0.001,66270.0,66269.0,0.321796]
[1718591362502,0.001,66270.0,66269.0,0.315796]
[1718591362706,0.022777,66275.0,66274.0,0.01]
[1718591363409,0.022777,66275.0,66274.0,0.160888]
[1718591363635,0.022777,66275.0,66274.0,0.6430334]
[1718591364139,0.023777,66275.0,66274.0,0.3412564]
[1718591364786,0.023777,66275.0,66274.0,0.6430334]
[1718591364787,0.001,66275.0,66274.0,0.6430334]
[1718591365014,0.001,66275.0,66274.0,0.596765]
[1718591365642,0.001,66275.0,66274.0,0.710865]
[1718591366376,0.001,66275.0,66274.0,0.409088]
[1718591366579,0.001,66275.0,66274.0,1.1063694]
[1718591366777,0.001,66275.0,66274.0,0.7945924]
[1718591367008,0.151887,66275.0,66270.0,0.01]
[1718591367205,0.001,66275.0,66273.0,0.01]
[1718591367446,0.001,66275.0,66274.0,0.160888]
[1718591367662,0.001,66275.0,66274.0,0.01]
[1718591368098,0.001,66275.0,66274.0,0.160888]
[1718591368404,0.001,66275.0,66273.0,0.01]
[1718591368665,0.001,66275.0,66270.0,0.01]
[1718591368905,0.001,66275.0,66274.0,0.01]
[1718591369142,0.001,66275.0,66270.0,0.005]
[1718591369143,0.452686,66271.0,66270.0,0.005]
[1718591369337,0.001,66275.0,66268.0,0.1092]
[1718591369338,0.1509,66269.0,66268.0,0.1092]
[1718591369670,0.301785,66273.0,66268.0,0.1092]
[1718591369671,0.150894,66272.0,66268.0,0.1092]
[1718591369877,0.301785,66273.0,66268.0,0.1092]
[1718591369878,0.00083159,66286.0,66268.0,0.135536]
[1718591370085,0.04938401,66282.0,66274.0,0.150887]
[1718591370284,0.00083159,66280.0,66273.0,0.01]
[1718591370489,0.060376,66281.0,66273.0,0.01]
[1718591370718,0.060376,66281.0,66271.0,0.01]
[1718591370922,0.07604389,66277.0,66270.0,0.1264]
[1718591371122,0.07604389,66277.0,66268.0,0.1092]
[1718591371338,0.07604389,66277.0,66266.0,0.1433]
[1718591371339,0.00083159,66274.0,66266.0,0.1433]
[1718591371539,0.150906,66266.0,66265.0,0.00086]
[1718591371693,0.301792,66271.0,66265.0,0.00086]
[1718591371912,0.150899,66270.0,66265.0,0.00086]
[1718591372116,0.150899,66270.0,66265.0,0.01086]
[1718591372316,0.00083159,66272.0,66265.0,0.00086]